bitfinex/quotes_SOLUSD_20240613
["timestamp","ask_amount","ask_price","bid_price","bid_amount"]
[1718303195515,7.64,148.42,148.41,2.4929]
[1718303195703,7.64,148.42,148.41,22.4929]
[1718303195897,7.64,148.42,148.4,2.4931]
[1718303196099,7.64,148.41,148.38,2.4935]
[1718303196311,7.64,148.41,148.36,4.9875]
[1718303196312,7.64,148.39,148.36,2.4938]
[1718303196620,7.64,148.37,148.35,4.9882]
[1718303196793,45.0,148.41,148.38,2.4935]
[1718303197108,7.64,148.39,148.38,2.4935]
[1718303197690,0.51,148.43,148.4,2.4931]
[1718303197895,7.64,148.41,148.4,2.4931]
[1718303198517,7.64,148.41,148.39,2.4933]
[1718303198715,7.64,148.4,148.39,2.4933]
[1718303201400,2.4924,148.45,148.39,4.9867]
[1718303201618,47.4924,148.45,148.41,2.493]
[1718303201837,7.64,148.42,148.4,2.4932]
[1718303202125,7.64,148.41,148.4,2.4932]
[1718303205324,47.4924,148.45,148.41,2.493]
[1718303205627,7.64,148.42,148.41,2.493]
[1718303205815,7.64,148.42,148.4,2.4931]
[1718303208413,7.64,148.41,148.39,2.4933]
[1718303209427,7.64,148.4,148.39,2.4933]
[1718303210001,7.64,148.41,148.39,2.4933]
[1718303211015,7.64,148.4,148.39,2.4933]
[1718303211417,7.64,148.41,148.39,2.4933]
[1718303212209,7.64,148.4,148.39,2.4933]
[1718303212611,7.64,148.4,148.37,2.4936]
[1718303212835,7.64,148.38,148.36,4.9875]
[1718303213038,7.64,148.39,148.38,2.4934]
[1718303213615,2.4928,148.43,148.38,2.4934]
[1718303213825,7.64,148.39,148.38,2.4934]
[1718303214914,7.64,148.39,148.37,4.9875]
[1718303214915,7.64,148.39,148.37,2.4936]
[1718303215227,7.64,148.38,148.37,2.4936]
[1718303216230,2.493,148.42,148.38,2.4935]
[1718303216411,7.64,148.39,148.38,2.4935]
[1718303220755,7.64,148.39,148.37,2.4936]
[1718303221043,7.64,148.38,148.37,2.4936]
[1718303222751,2.4929,148.42,148.38,2.4935]
[1718303223051,7.64,148.39,148.38,2.4935]
[1718303227246,48.0028,148.43,148.38,2.4935]
[1718303227450,48.0028,148.43,148.37,4.9875]
[1718303227451,45.51,148.43,148.4,2.4932]
[1718303227747,45.51,148.43,148.41,2.4929]
[1718303228044,7.64,148.42,148.41,2.4929]
[1718303228460,7.64,148.42,148.4,2.4931]
[1718303228673,7.64,148.41,148.4,2.4931]
[1718303229264,7.64,148.41,148.39,2.4933]
[1718303229469,7.64,148.4,148.37,4.9873]
[1718303229640,7.64,148.38,148.36,20.0]
[1718303230152,7.64,148.38,148.37,2.4937]
[1718303230456,7.64,148.39,148.37,4.9874]
[1718303230754,7.64,148.39,148.38,2.4934]
[1718303231154,7.64,148.39,148.36,4.9878]
[1718303231334,7.64,148.38,148.37,2.4936]
[1718303234761,7.64,148.39,148.38,2.4935]
[1718303238060,7.64,148.39,148.37,2.4936]
[1718303239343,7.64,148.38,148.37,2.4936]
[1718303244743,7.64,148.38,148.34,15.0912]
[1718303245071,7.64,148.35,148.34,2.4942]
[1718303248254,2.4935,148.39,148.34,2.4942]
[1718303248449,7.64,148.35,148.34,2.4942]
[1718303248863,7.64,148.35,148.33,2.4943]
[1718303249145,7.64,148.34,148.33,2.4943]
[1718303250086,16.6179,148.37,148.31,0.8372869]
[1718303250295,7.64,148.32,148.31,3.3318869]
[1718303250456,10.1346,148.32,148.31,0.8372869]
[1718303250653,7.64,148.32,148.31,0.8372869]
[1718303250857,53.15,148.32,148.31,0.8372869]
[1718303251886,55.6446,148.32,148.31,0.8372869]
[1718303252263,53.15,148.32,148.31,0.8372869]
[1718303252996,45.51,148.32,148.31,0.8372869]
[1718303253189,53.15,148.32,148.31,0.8372869]
[1718303253683,269.7179,148.37,148.31,0.8372869]
[1718303253858,272.2117,148.37,148.31,0.8372869]
[1718303254063,7.64,148.33,148.32,2.4946]
[1718303254275,7.64,148.33,148.31,3.3318869]
[1718303254481,269.7179,148.37,148.31,0.8372869]
[1718303254482,7.64,148.32,148.31,0.8372869]
[1718303255976,53.15,148.32,148.31,0.8372869]
[1718303256357,55.6446,148.32,148.31,0.8372869]
[1718303262783,60.6338,148.32,148.31,0.8372869]
[1718303262992,68.1176,148.32,148.31,0.8372869]
[1718303263179,2.4951,148.29,148.25,2.4957]
[1718303263383,7.64,148.26,148.25,2.4957]
[1718303263583,7.64,148.26,148.24,2.4958]
[1718303263788,7.64,148.25,148.24,2.4958]
[1718303265299,7.64,148.25,148.22,7.4888]
[1718303265300,7.64,148.25,148.21,2.4963]
[1718303265599,7.64,148.22,148.21,2.4963]
[1718303266301,7.64,148.22,148.19,2.4967]
[1718303266480,7.64,148.2,148.19,2.4967]
[1718303266679,7.64,148.2,148.17,3.46095731]
[1718303266898,0.17,148.19,148.16,4.29824421]
[1718303267210,45.34,148.21,148.16,3.3344869]
[1718303267211,7.64,148.17,148.16,3.3344869]
[1718303267377,7.64,148.18,148.16,3.3344869]
[1718303267881,7.64,148.18,148.16,0.8372869]
[1718303268077,45.34,148.21,148.18,2.4969]
[1718303268381,7.64,148.2,148.19,2.4967]
[1718303268583,7.64,148.2,148.16,0.8372869]
[1718303268781,7.64,148.19,148.17,2.497]
[1718303269083,7.64,148.19,148.16,3.3344869]
[1718303269600,7.64,148.19,148.17,2.4971]
[1718303270283,7.64,148.19,148.16,0.8372869]
[1718303270284,7.64,148.18,148.16,0.8372869]
[1718303270478,60.1856,148.26,148.16,0.8372869]
[1718303270479,2.4961,148.23,148.16,0.8372869]
[1718303270805,22.1386,148.26,148.21,2.4963]
[1718303270999,7.64,148.22,148.21,2.4963]
[1718303271478,7.64,148.22,148.2,2.4965]
[1718303271805,7.64,148.23,148.21,2.4964]
[1718303272710,253.1,148.27,148.17,7.64]
[1718303272886,2.4951,148.29,148.21,12.4819]
[1718303273091,7.64,148.26,148.23,2.496]
[1718303273298,2.4953,148.28,148.22,2.4962]
[1718303273299,7.64,148.25,148.22,2.4962]
[1718303273490,7.64,148.23,148.21,2.4964]
[1718303273805,7.64,148.22,148.21,2.4964]
[1718303274012,7.64,148.22,148.2,22.4965]
[1718303274314,7.64,148.22,148.2,2.4965]
[1718303274478,10.1357,148.26,148.2,2.4965]
[1718303274683,7.64,148.21,148.2,2.4965]
[1718303275498,45.51,148.25,148.19,12.4837]
[1718303275499,0.17,148.25,148.19,12.4837]
[1718303275715,0.17,148.26,148.23,2.496]
[1718303275899,0.17,148.27,148.23,2.496]
[1718303276101,7.64,148.24,148.23,2.496]
[1718303277388,7.64,148.24,148.22,2.4962]
[1718303277591,7.64,148.24,148.21,2.4964]
[1718303277917,7.64,148.23,148.21,2.4964]
[1718303278304,7.64,148.22,148.21,2.4964]
[1718303278507,7.64,148.23,148.21,2.4964]
[1718303279114,7.64,148.23,148.22,2.4962]
[1718303280021,7.64,148.24,148.22,2.4962]
[1718303280320,2.4952,148.29,148.24,2.4958]
[1718303280504,2.4952,148.28,148.24,2.4958]
[1718303280703,2.4951,148.29,148.24,2.4958]
[1718303280907,7.64,148.26,148.24,2.4958]
[1718303281727,2.4952,148.29,148.24,2.4958]
[1718303282024,7.64,148.26,148.25,2.4957]
[1718303282318,7.64,148.27,148.25,2.4957]
[1718303282521,7.64,148.27,148.24,2.4958]
[1718303282719,7.64,148.26,148.24,2.4958]
[1718303284124,7.64,148.26,148.25,2.4957]
[1718303284701,2.4952,148.29,148.25,2.4957]
[1718303284921,7.64,148.26,148.25,2.4957]
[1718303285725,7.64,148.28,148.26,2.4955]
[1718303287700,255.5945,148.33,148.26,22.4601]
[1718303287900,253.1,148.33,148.27,12.4769]
[1718303288123,7.64,148.31,148.29,2.495]
[1718303288333,7.64,148.31,148.3,2.4949]
[1718303288639,7.64,148.32,148.3,2.4949]
[1718303288829,253.1,148.33,148.3,2.4949]
[1718303289008,7.64,148.32,148.29,2.495]
[1718303289205,253.1,148.33,148.29,9.9802]
[1718303289535,253.1,148.33,148.3,20.0]
[1718303289830,7.64,148.31,148.28,2.4951]
[1718303290029,7.64,148.3,148.28,2.4951]
[1718303290834,7.64,148.3,148.29,2.4951]
[1718303291426,253.1,148.33,148.31,2.4947]
[1718303291620,7.64,148.32,148.3,2.4948]
[1718303291818,7.64,148.31,148.3,2.4948]
[1718303292134,253.1,148.33,148.32,2.4946]
[1718303293915,260.74,148.33,148.32,2.4946]
[1718303294937,253.1,148.33,148.32,2.4946]
[1718303295242,260.74,148.33,148.32,2.4946]
[1718303296514,253.1,148.33,148.32,2.4946]
[1718303296910,253.1,148.33,148.32,14.9676]
[1718303297939,2.4933,148.4,148.34,4.9885]
[1718303298236,2.4934,148.39,148.35,2.4939]
[1718303298443,33.0533,148.4,148.35,2.4939]
[1718303298645,7.64,148.37,148.36,2.4939]
[1718303298814,33.0533,148.4,148.35,2.4939]
[1718303299018,7.64,148.37,148.35,2.4939]
[1718303299223,7.64,148.36,148.35,2.4939]
[1718303301338,7.64,148.37,148.35,2.4939]
[1718303302440,7.64,148.36,148.35,2.4939]
[1718303305133,7.64,148.36,148.33,2.4942]
[1718303305338,7.64,148.34,148.33,2.4944]
[1718303307645,7.64,148.35,148.33,2.4943]
[1718303307958,7.64,148.35,148.34,2.4942]
[1718303308531,7.64,148.35,148.33,2.4943]
[1718303308834,7.64,148.34,148.33,2.4943]
[1718303309528,7.64,148.34,148.29,9.9802]
[1718303309720,7.64,148.34,148.28,6.6538]
[1718303309721,7.64,148.31,148.3,2.4948]
[1718303310849,2.4939,148.36,148.29,12.4754]
[1718303311042,7.64,148.32,148.3,4.9898]
[1718303312337,7.64,148.33,148.3,4.9898]
[1718303313128,7.64,148.33,148.32,2.4946]
[1718303314863,0.17,148.35,148.33,2.4943]
[1718303315053,7.64,148.34,148.33,2.4943]
[1718303315459,7.64,148.34,148.32,2.4945]
[1718303315633,7.64,148.34,148.33,2.4944]
[1718303315837,7.64,148.34,148.32,2.4945]
[1718303317234,0.51,148.36,148.33,2.4944]
[1718303317448,7.64,148.34,148.33,2.4944]
[1718303317631,4.9872,148.38,148.34,2.4941]
[1718303317632,7.64,148.35,148.34,2.4941]
[1718303317974,2.4936,148.38,148.34,2.4941]
[1718303317975,7.64,148.36,148.34,2.4941]
[1718303319051,2.6634,148.39,148.35,2.494]
[1718303319558,7.64,148.36,148.35,2.494]
[1718303319857,7.64,148.36,148.34,2.4941]
[1718303323166,7.64,148.36,148.33,2.4943]
[1718303323366,7.64,148.36,148.34,2.4942]
[1718303325752,2.6635,148.39,148.35,2.494]
[1718303326080,7.64,148.36,148.35,2.494]
[1718303328172,7.64,148.36,148.33,12.4719]
[1718303328173,7.64,148.36,148.34,2.4941]
[1718303328856,7.64,148.36,148.35,2.4941]
[1718303329494,7.64,148.37,148.36,2.4939]
[1718303330081,7.64,148.37,148.35,2.494]
[1718303330569,2.6634,148.39,148.35,2.494]
[1718303330770,7.64,148.37,148.36,2.4939]
[1718303331147,7.64,148.37,148.35,2.4939]
[1718303332582,0.17,148.39,148.36,2.4939]
[1718303333084,2.4938,148.37,148.32,4.9888]
[1718303333283,2.4938,148.37,148.33,2.4943]
[1718303333465,2.4938,148.37,148.34,2.4942]
[1718303333657,2.4938,148.37,148.33,22.4943]
[1718303333858,7.64,148.34,148.31,4.9894]
[1718303334090,7.64,148.34,148.33,2.4944]
[1718303337764,0.17,148.36,148.34,2.4942]
[1718303337964,7.64,148.35,148.34,2.4942]
[1718303338986,7.64,148.36,148.35,2.494]
[1718303340502,7.64,148.36,148.33,2.4943]
[1718303340705,2.4938,148.37,148.33,2.4943]
[1718303340706,7.64,148.34,148.33,2.4943]
[1718303342701,7.64,148.36,148.35,2.4939]
[1718303343476,0.17,148.38,148.36,2.4938]
[1718303343677,7.64,148.37,148.36,2.4938]
[1718303344071,7.64,148.37,148.35,2.494]
[1718303344970,7.64,148.36,148.34,2.4941]
[1718303345302,7.64,148.35,148.32,2.4944]
[1718303345475,7.64,148.34,148.33,2.4944]
[1718303345675,7.64,148.35,148.33,2.4944]
[1718303345980,7.64,148.34,148.33,2.4944]
[1718303348080,7.64,148.34,148.31,2.4946]
[1718303348314,7.64,148.32,148.29,4.9901]
[1718303348602,0.51,148.35,148.32,2.4944]
[1718303348797,7.64,148.33,148.32,2.4944]
[1718303351919,7.64,148.33,148.3,2.4949]
[1718303352080,3.0041,148.35,148.31,2.4947]
[1718303352282,0.51,148.34,148.32,2.4944]
[1718303352512,45.51,148.35,148.33,2.4943]
[1718303352716,7.64,148.34,148.33,2.4943]
[1718303353288,7.64,148.34,148.32,2.4944]
[1718303353820,2.4935,148.39,148.33,4.9888]
[1718303354108,7.64,148.36,148.35,2.494]
[1718303354410,7.64,148.36,148.34,2.4941]
[1718303354701,7.64,148.36,148.31,22.452]
[1718303354702,7.64,148.35,148.31,12.4734]
[1718303354907,4.9869,148.39,148.32,2.4944]
[1718303354908,7.64,148.34,148.32,2.4944]
[1718303355312,7.64,148.33,148.32,2.4944]
[1718303355690,7.64,148.33,148.31,2.4946]
[1718303355883,2.494,148.36,148.32,2.4946]
[1718303356086,7.64,148.33,148.32,2.4946]
[1718303356785,0.51,148.35,148.32,2.4946]
[1718303357008,7.64,148.33,148.32,2.4946]
[1718303358810,7.64,148.33,148.3,2.4948]
[1718303359116,7.64,148.31,148.3,2.4948]
[1718303359320,7.64,148.31,148.3,2.4949]
[1718303359979,7.64,148.31,148.29,2.495]
[1718303360491,2.4943,148.34,148.3,2.4949]
[1718303360813,7.64,148.31,148.3,2.4949]
[1718303363318,7.64,148.31,148.3,7.4847]
[1718303363520,7.64,148.32,148.31,2.4947]
[1718303367501,7.64,148.32,148.3,2.4948]
[1718303367727,7.64,148.31,148.3,2.4948]
[1718303373133,0.51,148.35,148.32,2.4945]
[1718303373345,8.9088,148.36,148.31,4.9894]
[1718303373518,8.9088,148.36,148.32,2.4945]
[1718303373711,7.64,148.33,148.32,2.4945]
[1718303375217,2.4946,148.32,148.27,21.2135]
[1718303375430,7.64,148.3,148.29,2.4949]
[1718303375612,7.64,148.31,148.29,2.4949]
[1718303376129,7.64,148.31,148.3,2.4949]
[1718303383409,7.64,148.31,148.28,2.4952]
[1718303383611,7.64,148.29,148.26,4.991]
[1718303383811,7.64,148.28,148.27,2.4954]
[1718303385226,7.64,148.28,148.26,2.4955]
[1718303385435,7.64,148.27,148.26,2.4955]
[1718303385831,7.64,148.27,148.25,2.4957]
[1718303386039,7.64,148.26,148.25,2.4957]
[1718303387346,7.64,148.26,148.25,7.4872]
[1718303387713,7.64,148.27,148.26,2.4956]
[1718303394545,7.64,148.27,148.25,2.4956]
[1718303395039,7.64,148.27,148.26,2.4956]
[1718303396446,7.64,148.27,148.25,2.4957]
[1718303396944,7.64,148.26,148.25,2.4957]
[1718303399346,7.64,148.27,148.25,2.4957]
[1718303400434,7.64,148.26,148.24,2.4958]
[1718303400647,2.4951,148.29,148.25,2.4956]
[1718303400859,7.64,148.27,148.25,2.4956]
[1718303401231,4.9899,148.3,148.23,14.9762]
[1718303401425,7.64,148.25,148.24,2.4958]
[1718303401653,7.64,148.25,148.23,2.496]
[1718303401854,7.64,148.24,148.23,2.496]
[1718303402153,7.64,148.24,148.22,2.4962]
[1718303402336,7.64,148.23,148.22,2.4962]
[1718303403252,17.4671,148.28,148.24,2.4958]
[1718303403253,2.4953,148.28,148.24,2.4958]
[1718303403452,45.0,148.29,148.26,2.4954]
[1718303403631,7.64,148.27,148.26,2.4954]
[1718303405656,48.005,148.3,148.26,2.4954]
[1718303405657,45.51,148.3,148.26,2.4954]
[1718303405864,18.8168,148.32,148.28,2.4952]
[1718303406157,7.64,148.29,148.28,2.4952]
[1718303406554,11.2521,148.35,148.3,2.4948]
[1718303406862,8.7579,148.35,148.3,2.4949]
[1718303407159,7.64,148.32,148.31,2.4947]
[1718303407552,18.2213,148.36,148.32,2.4945]
[1718303407753,7.64,148.34,148.3,12.4745]
[1718303407944,7.64,148.34,148.32,2.4945]
[1718303408148,7.64,148.34,148.33,2.4944]
[1718303408361,7.64,148.35,148.33,2.4944]
[1718303408567,7.64,148.35,148.32,12.4729]
[1718303408760,6.5384,148.39,148.34,2.4941]
[1718303409069,9.0319,148.39,148.35,2.494]
[1718303409270,7.64,148.36,148.35,2.494]
[1718303411687,7.64,148.36,148.35,2.494]
[1718303413370,7.64,148.37,148.35,2.494]
[1718303416367,19.1338,148.4,148.36,2.4938]
[1718303416668,7.64,148.38,148.36,2.4938]
[1718303416969,7.64,148.38,148.37,2.4937]
[1718303417383,7.64,148.39,148.37,2.4937]
[1718303418104,7.64,148.39,148.36,2.4938]
[1718303422892,7.64,148.39,148.37,2.4937]
[1718303423273,0.17,148.41,148.38,2.4935]
[1718303423585,7.64,148.4,148.38,2.4935]
[1718303424488,7.64,148.4,148.39,2.4934]
[1718303425490,7.64,148.4,148.38,2.4935]
[1718303426567,2.4928,148.43,148.39,2.4934]
[1718303426888,7.64,148.4,148.39,2.4934]
[1718303428403,18.9604,148.44,148.4,2.4931]
[1718303428585,7.64,148.41,148.4,2.4931]
[1718303428789,7.64,148.42,148.4,2.4931]
[1718303430579,2.4926,148.44,148.4,2.4931]
[1718303430799,7.64,148.43,148.4,2.4931]
[1718303430975,7.64,148.42,148.4,2.4931]
[1718303431175,2.4926,148.44,148.35,15.8374]
[1718303431176,7.64,148.41,148.36,7.4817]
[1718303431400,7.64,148.4,148.38,2.4934]
[1718303431575,10.133,148.41,148.38,2.4934]
[1718303431775,7.64,148.4,148.38,2.4934]
[1718303432303,7.64,148.4,148.39,2.4934]
[1718303432675,7.64,148.41,148.4,2.4932]
[1718303432875,2.4928,148.43,148.37,32.4685]
[1718303432876,253.1,148.45,148.37,20.0]
[1718303433071,253.1,148.45,148.42,2.4928]
[1718303433373,253.1,148.45,148.4,4.9864]
[1718303433374,253.1,148.45,148.43,2.4927]
[1718303433574,7.64,148.44,148.43,2.4927]
[1718303435203,253.1,148.45,148.44,2.4925]
[1718303435406,260.74,148.45,148.44,2.4925]
[1718303436226,253.1,148.45,148.44,2.4925]
[1718303436515,253.1,148.45,148.44,34.9553]
[1718303437481,253.1,148.45,148.44,27.4776]
[1718303437981,7.64,148.47,148.46,2.4922]
[1718303438406,7.64,148.47,148.45,2.4923]
[1718303438603,7.64,148.46,148.45,2.4923]
[1718303438791,2.4918,148.49,148.46,2.4922]
[1718303439089,7.64,148.47,148.46,2.4922]
[1718303442898,45.0,148.49,148.47,2.4919]
[1718303443103,7.64,148.48,148.47,2.4919]
[1718303443426,45.51,148.5,148.48,2.4918]
[1718303443726,7.98,148.49,148.47,2.4919]
[1718303444013,45.17,148.5,148.48,2.4918]
[1718303444223,7.64,148.49,148.48,2.4918]
[1718303444400,45.0,148.5,148.48,2.4918]
[1718303444727,253.1,148.53,148.5,2.4915]
[1718303444919,7.64,148.51,148.5,2.4915]
[1718303445595,18.5893,148.54,148.5,2.4915]
[1718303445795,7.64,148.51,148.5,2.4915]
[1718303446719,7.64,148.51,148.49,2.4916]
[1718303446921,7.64,148.5,148.49,2.4916]
[1718303453019,2.491,148.53,148.5,2.4915]
[1718303453223,7.64,148.51,148.48,2.4918]
[1718303453421,2.6613,148.52,148.46,4.9842]
[1718303453422,7.64,148.49,148.46,4.9842]
[1718303453632,45.34,148.5,148.48,2.4919]
[1718303453807,7.64,148.49,148.48,2.4919]
[1718303454417,45.34,148.5,148.48,2.4919]
[1718303454625,7.64,148.49,148.48,2.4919]
[1718303455705,2.4923,148.46,148.42,2.4928]
[1718303455929,55.6421,148.47,148.43,2.4926]
[1718303456229,7.64,148.44,148.43,2.4926]
[1718303456927,7.64,148.44,148.42,2.4928]
[1718303457146,55.6421,148.47,148.42,2.4928]
[1718303457147,7.64,148.43,148.42,2.4928]
[1718303458331,7.64,148.43,148.41,2.4929]
[1718303459330,7.64,148.43,148.42,2.4929]
[1718303459822,6.9230414,148.55,148.51,2.4913]
[1718303460027,17.4525,148.56,148.55,2.4907]
[1718303460204,25.0925,148.56,148.52,4.9823]
[1718303460525,7.64,148.55,148.52,4.9823]
[1718303460730,7.64,148.54,148.5,12.4575]
[1718303461028,7.64,148.54,148.53,2.491]
[1718303461428,7.64,148.54,148.53,7.4731]
[1718303461621,7.64,148.55,148.54,2.4909]
[1718303461934,7.64,148.56,148.55,2.4906]
[1718303462931,15.3942,148.6,148.58,2.4902]
[1718303463234,7.64,148.59,148.58,2.4902]
[1718303464027,7.64,148.59,148.51,29.965]
[1718303464206,7.64,148.54,148.51,20.0]
[1718303464525,7.64,148.53,148.52,2.4911]
[1718303465537,7.64,148.53,148.5,20.0]
[1718303465720,7.64,148.52,148.51,2.4913]
[1718303467132,2.4906,148.56,148.52,2.4911]
[1718303467431,2.4906,148.56,148.5,20.0]
[1718303467432,7.64,148.53,148.5,24.983]
[1718303467633,7.64,148.53,148.52,2.4912]
[1718303467803,0.51,148.55,148.53,2.491]
[1718303468006,7.64,148.54,148.53,2.491]
[1718303468327,53.15,148.54,148.53,2.491]
[1718303468726,45.51,148.54,148.53,2.491]
[1718303468927,53.15,148.54,148.53,2.491]
[1718303470350,45.51,148.54,148.53,2.491]
[1718303470634,53.15,148.54,148.53,2.491]
[1718303472056,53.15,148.54,148.5,27.4747]
[1718303472057,53.15,148.54,148.52,2.4912]
[1718303472219,7.64,148.53,148.52,2.4912]
[1718303473731,53.15,148.54,148.53,2.491]
[1718303475012,52.98,148.54,148.53,2.491]
[1718303482225,45.34,148.54,148.53,2.491]
[1718303482634,52.98,148.54,148.53,2.491]
[1718303485970,45.34,148.54,148.53,2.491]
[1718303486143,2.4903,148.58,148.53,7.4731]
[1718303486349,2.4901,148.59,148.56,2.4905]
[1718303486661,7.64,148.57,148.56,2.4905]
[1718303487467,52.64,148.57,148.56,2.4905]
[1718303487663,53.15,148.57,148.56,2.4905]
[1718303488268,53.15,148.57,148.55,2.4906]
[1718303488463,7.64,148.56,148.55,2.4906]
[1718303490462,55.3006,148.56,148.53,2.4909]
[1718303490657,7.64,148.55,148.53,2.4909]
[1718303490964,7.64,148.54,148.53,2.4909]
[1718303494687,48.0004,148.57,148.52,4.9821]
[1718303494868,45.51,148.56,148.54,2.4908]
[1718303495172,7.64,148.55,148.54,2.4908]
[1718303495352,45.51,148.56,148.54,2.4908]
[1718303495552,7.64,148.55,148.54,2.4908]
[1718303495743,52.98,148.55,148.54,2.4908]
[1718303505570,53.15,148.55,148.54,2.4908]
[1718303505892,53.15,148.55,148.52,2.4911]
[1718303506075,7.64,148.53,148.52,2.4911]
[1718303509365,7.64,148.53,148.52,7.4735]
[1718303510185,45.34,148.54,148.53,2.491]
[1718303510487,53.15,148.54,148.53,2.491]
[1718303511386,53.15,148.54,148.52,2.4912]
[1718303511791,7.64,148.53,148.52,2.4912]
[1718303513066,52.98,148.53,148.52,2.4912]
[1718303519403,7.64,148.53,148.52,14.9472]
[1718303519607,7.64,148.53,148.52,7.4735]
[1718303520922,15.4638,148.58,148.52,7.4735]
[1718303520923,15.4638,148.58,148.55,2.4907]
[1718303521093,2.4899,148.6,148.56,2.4904]
[1718303521298,7.64,148.57,148.56,2.4904]
[1718303522125,7.64,148.57,148.55,2.4906]
[1718303522306,7.64,148.56,148.55,2.4906]
[1718303523023,7.64,148.56,148.54,2.4908]
[1718303523324,7.64,148.55,148.54,2.4908]
[1718303524422,7.64,148.55,148.54,2.4909]
[1718303525603,7.64,148.55,148.52,2.4911]
[1718303525921,2.4907,148.56,148.52,2.4911]
[1718303525922,7.64,148.53,148.52,2.4911]
[1718303526101,7.64,148.53,148.51,2.4913]
[1718303526301,47.4909,148.54,148.48,7.4752]
[1718303526302,52.98,148.52,148.5,2.4914]
[1718303526536,7.64,148.51,148.5,2.4914]
[1718303527431,45.0,148.54,148.52,2.4911]
[1718303527641,7.81,148.53,148.52,2.4911]
[1718303529544,7.64,148.53,148.52,2.4911]
[1718303529844,7.64,148.54,148.53,2.491]
[1718303530022,7.81,148.54,148.53,2.491]
[1718303531027,7.64,148.54,148.53,2.491]
[1718303531241,2.4903,148.58,148.54,2.4909]
[1718303531415,7.64,148.55,148.54,2.4909]
[1718303531614,7.81,148.55,148.53,2.4909]
[1718303531822,7.64,148.55,148.53,2.4909]
[1718303532634,7.64,148.55,148.52,4.9824]
[1718303532635,7.64,148.55,148.52,2.4912]
[1718303532837,7.64,148.53,148.52,2.4912]
[1718303533527,7.64,148.54,148.53,2.491]
[1718303536124,7.64,148.54,148.52,2.4911]
[1718303537645,0.17,148.55,148.52,2.4911]
[1718303537966,7.64,148.54,148.52,2.4911]
[1718303538666,0.34,148.55,148.5,17.4405]
[1718303538670,7.64,148.53,148.5,7.4745]
[1718303538858,7.64,148.53,148.52,2.4911]
[1718303540141,0.34,148.55,148.52,2.4911]
[1718303540334,0.34,148.55,148.53,2.491]
[1718303540539,7.64,148.54,148.53,2.491]
[1718303540947,0.34,148.55,148.53,2.491]
[1718303541148,0.34,148.56,148.53,2.491]
[1718303541455,7.64,148.54,148.53,2.491]
[1718303543055,7.64,148.54,148.5,2.4914]